fUSD/lending_fUSD_20260527
["ID","MTS","AMOUNT","RATE_DAILY","PERIOD"]
[423149110,1779893657000,-150.0,0.00033546,7]
[423149109,1779893657000,-150.0,0.00033521,7]
[423149112,1779893657000,-150.0,0.00033557,7]
[423149115,1779893657000,-150.0,0.00033588,7]
[423149116,1779893657000,-150.0,0.00033594,7]
[423149113,1779893657000,-150.0,0.00033568,7]
[423149114,1779893657000,-166.14,0.00033581,7]
[423149123,1779893657000,-678.24,0.00033664,7]
[423149121,1779893657000,-173.48,0.00033628,7]
[423149117,1779893657000,-180.65,0.00033598,30]
[423149135,1779893657000,-175.0,0.00033799,30]
[423149119,1779893657000,-162.65488501,0.00033612,30]
[423149118,1779893657000,-2000.0,0.000336,12]
[423149125,1779893657000,-150.0,0.00033679,30]
[423149128,1779893657000,-150.0,0.00033746,7]
[423149124,1779893657000,-150.0,0.00033679,7]
[423149127,1779893657000,-150.0,0.00033711,7]
[423149129,1779893657000,-150.0,0.00033751,7]
[423149126,1779893657000,-4100.0,0.000337,12]
[423149130,1779893657000,-150.0,0.00033757,7]
[423149131,1779893657000,-248.02811802,0.00033764,2]
[423149132,1779893657000,-150.0,0.00033767,7]
[423149133,1779893657000,-228.53078202,0.00033781,7]
[423149160,1779893657000,-723.456095,0.000339,120]
[423149163,1779893657000,-150.0,0.00033901,30]
[423149122,1779893657000,-150.0,0.00033654,7]
[423149164,1779893657000,-506.0,0.0003394,11]
[423149193,1779893657000,-500.0,0.00033963,2]
[423149189,1779893657000,-500.0,0.00033963,2]
[423149196,1779893657000,-500.0,0.00033963,120]
[423149191,1779893657000,-500.0,0.00033963,2]
[423149192,1779893657000,-500.0,0.00033963,2]
[423149209,1779893657000,-250.0,0.00034,30]
[423149200,1779893657000,-151.0,0.00033964,2]
[423149199,1779893657000,-151.0,0.00033964,2]
[423149202,1779893657000,-151.0,0.00033964,2]
[423149198,1779893657000,-151.0,0.00033964,2]
[423149201,1779893657000,-151.0,0.00033964,2]
[423149186,1779893657000,-500.0,0.00033963,30]
[423149203,1779893657000,-150.0,0.00033966,4]
[423149207,1779893657000,-191.01,0.00034,30]
[423149206,1779893657000,-180.65,0.00033983,7]
[423149205,1779893657000,-150.0,0.00033966,4]
[423149210,1779893657000,-661.28,0.00034001,7]
[423149214,1779893657000,-150.0,0.00034123,30]
[423149212,1779893657000,-330.0,0.00034082,34]
[423149211,1779893657000,-610.54260806,0.00034051,3]
[423149213,1779893657000,-153.62,0.00034109,7]
[423149215,1779893657000,-157.77,0.00034135,2]
[423149216,1779893657000,-174.12,0.00034164,2]
[423149162,1779893657000,-8200.0,0.000339,12]
[423149208,1779893657000,-153.74,0.00034,7]
[423149197,1779893657000,-195.84112978,0.00033963,120]
[423149204,1779893657000,-392.08,0.00033966,4]
[423149187,1779893657000,-175.0512305,0.00033963,120]
[423149195,1779893657000,-500.0,0.00033963,120]
[423149165,1779893657000,-260.41362,0.00033945,7]
[423149167,1779893657000,-222.01031952,0.00033945,7]
[423149166,1779893657000,-216.50269169,0.00033945,7]
[423149168,1779893657000,-225.64406118,0.00033945,7]
[423149170,1779893657000,-224.6165064,0.00033945,7]
[423149169,1779893657000,-272.56195256,0.00033945,7]
[423149173,1779893657000,-156.26978517,0.00033954,2]
[423149183,1779893657000,-500.0,0.00033963,30]
[423149174,1779893657000,-151.0,0.00033961,14]
[423149172,1779893657000,-173.89,0.00033949,7]
[423149184,1779893657000,-500.0,0.00033963,30]
[423149171,1779893657000,-242.90390146,0.00033945,7]
[423149190,1779893657000,-500.0,0.00033963,2]
[423149179,1779893657000,-500.0,0.00033963,30]
[423149194,1779893657000,-530.63,0.00033963,2]
[423149188,1779893657000,-500.0,0.00033963,2]
[423149185,1779893657000,-500.0,0.00033963,30]
[423149181,1779893657000,-500.0,0.00033963,30]
[423149182,1779893657000,-500.0,0.00033963,30]
[423149177,1779893657000,-1277.6691366,0.00033963,30]
[423149178,1779893657000,-500.0,0.00033963,30]
[423149175,1779893657000,-151.0,0.00033961,14]
[423149176,1779893657000,-151.0,0.00033961,14]
[423149180,1779893657000,-500.0,0.00033963,30]
[423149261,1779893658000,-500.0,0.00034452,60]
[423149251,1779893658000,-150.0,0.00034452,60]
[423149260,1779893658000,-267.19449444,0.00034452,60]
[423149256,1779893658000,-500.0,0.00034452,60]
[423149253,1779893658000,-500.0,0.00034452,60]
[423149249,1779893658000,-500.0,0.00034452,60]
[423149247,1779893658000,-164.66146701,0.00034452,60]
[423149250,1779893658000,-500.0,0.00034452,60]
[423149252,1779893658000,-500.0,0.00034452,60]
[423149248,1779893658000,-150.0,0.00034452,60]
[423149257,1779893658000,-500.0,0.00034452,60]
[423149254,1779893658000,-180.65416299,0.00034452,60]
[423149262,1779893658000,-500.0,0.00034452,60]
[423149271,1779893658000,-500.0,0.00034452,60]
[423149259,1779893658000,-500.0,0.00034452,60]
[423149267,1779893658000,-500.0,0.00034452,60]
[423149263,1779893658000,-500.0,0.00034452,60]
[423149264,1779893658000,-500.0,0.00034452,60]
[423149266,1779893658000,-172.95795463,0.00034452,60]
[423149265,1779893658000,-500.0,0.00034452,60]
[423149279,1779893658000,-500.0,0.00034452,60]
[423149269,1779893658000,-500.0,0.00034452,60]
[423149273,1779893658000,-500.0,0.00034452,60]
[423149270,1779893658000,-500.0,0.00034452,60]
[423149268,1779893658000,-500.0,0.00034452,60]
[423149246,1779893658000,-500.0,0.00034452,60]
[423149258,1779893658000,-500.0,0.00034452,60]
[423149244,1779893658000,-500.0,0.00034452,60]
[423149220,1779893658000,-200.0,0.00034247,90]
[423149245,1779893658000,-150.0,0.00034452,60]
[423149218,1779893658000,-700.4,0.00034169,7]
[423149276,1779893658000,-500.0,0.00034452,60]
[423149219,1779893658000,-166.63,0.00034179,7]
[423149217,1779893658000,-168.48,0.00034169,7]
[423149222,1779893658000,-204.0,0.00034247,90]
[423149232,1779893658000,-500.0,0.00034452,60]
[423149228,1779893658000,-173.89,0.00034342,2]
[423149224,1779893658000,-449.42469043,0.00034297,27]
[423149221,1779893658000,-200.0,0.00034247,90]
[423149225,1779893658000,-500.0,0.00034297,27]
[423149231,1779893658000,-150.0,0.00034452,60]
[423149230,1779893658000,-180.65,0.00034369,2]
[423149255,1779893658000,-500.0,0.00034452,60]
[423149223,1779893658000,-2000.0,0.00034247,30]
[423149227,1779893658000,-702.92,0.00034337,7]
[423149229,1779893658000,-150.0,0.00034344,30]
[423149233,1779893658000,-500.0,0.00034452,60]
[423149241,1779893658000,-622.5845227,0.00034452,60]
[423149234,1779893658000,-150.0,0.00034452,60]
[423149242,1779893658000,-500.0,0.00034452,60]
[423149238,1779893658000,-218.39893225,0.00034452,60]
[423149239,1779893658000,-500.0,0.00034452,60]
[423149240,1779893658000,-150.0,0.00034452,60]
[423149237,1779893658000,-500.0,0.00034452,60]
[423149243,1779893658000,-171.50846167,0.00034452,60]
[423149236,1779893658000,-150.0,0.00034452,60]
[423149226,1779893658000,-500.0,0.00034297,27]
[423149272,1779893658000,-500.0,0.00034452,60]
[423149235,1779893658000,-500.0,0.00034452,60]
[423149275,1779893658000,-500.0,0.00034452,60]
[423149307,1779893658000,-418.0,0.00034452,60]
[423149330,1779893658000,-158.10865426,0.00034452,60]
[423149309,1779893658000,-418.0,0.00034452,60]
[423149308,1779893658000,-418.0,0.00034452,60]
[423149315,1779893658000,-418.0,0.00034452,60]
[423149312,1779893658000,-418.0,0.00034452,60]
[423149311,1779893658000,-418.0,0.00034452,60]
[423149314,1779893658000,-418.0,0.00034452,60]
[423149313,1779893658000,-418.0,0.00034452,60]
[423149318,1779893658000,-418.0,0.00034452,60]
[423149320,1779893658000,-418.0,0.00034452,60]
[423149328,1779893658000,-150.0,0.00034452,60]
[423149317,1779893658000,-418.0,0.00034452,60]
[423149319,1779893658000,-418.0,0.00034452,60]
[423149327,1779893658000,-500.0,0.00034452,120]
[423149324,1779893658000,-418.0,0.00034452,60]
[423149321,1779893658000,-418.0,0.00034452,60]
[423149323,1779893658000,-418.0,0.00034452,60]
[423149326,1779893658000,-150.0,0.00034452,60]
[423149325,1779893658000,-418.0,0.00034452,60]
[423149329,1779893658000,-500.0,0.00034452,120]
[423149331,1779893658000,-500.0,0.00034452,120]
[423149334,1779893658000,-500.0,0.00034452,60]
[423149332,1779893658000,-418.0,0.00034452,60]
[423149333,1779893658000,-500.0,0.00034452,60]
[423149335,1779893658000,-500.0,0.00034452,60]
[423149278,1779893658000,-150.0,0.00034452,60]
[423149310,1779893658000,-418.0,0.00034452,60]
[423149305,1779893658000,-430.75105378,0.00034452,60]
[423149322,1779893658000,-418.0,0.00034452,60]
[423149306,1779893658000,-418.0,0.00034452,60]
[423149316,1779893658000,-418.0,0.00034452,60]
[423149274,1779893658000,-150.0,0.00034452,60]
[423149277,1779893658000,-500.0,0.00034452,60]
[423149280,1779893658000,-500.0,0.00034452,60]
[423149282,1779893658000,-150.0,0.00034452,60]
[423149286,1779893658000,-500.0,0.00034452,60]
[423149287,1779893658000,-150.0,0.00034452,60]
[423149283,1779893658000,-500.0,0.00034452,60]
[423149288,1779893658000,-157.41168338,0.00034452,60]
[423149284,1779893658000,-150.0,0.00034452,60]
[423149285,1779893658000,-500.0,0.00034452,60]
[423149289,1779893658000,-500.0,0.00034452,60]
[423149290,1779893658000,-184.48877466,0.00034452,60]
[423149281,1779893658000,-500.0,0.00034452,60]
[423149302,1779893658000,-532.15488729,0.00034452,60]
[423149293,1779893658000,-439.48495491,0.00034452,60]
[423149292,1779893658000,-500.0,0.00034452,60]
[423149294,1779893658000,-500.0,0.00034452,60]
[423149295,1779893658000,-500.0,0.00034452,60]
[423149296,1779893658000,-500.0,0.00034452,60]
[423149303,1779893658000,-500.0,0.00034452,60]
[423149297,1779893658000,-402.89210719,0.00034452,60]
[423149299,1779893658000,-500.0,0.00034452,60]
[423149301,1779893658000,-500.0,0.00034452,60]
[423149300,1779893658000,-500.0,0.00034452,60]
[423149298,1779893658000,-500.0,0.00034452,60]
[423149291,1779893658000,-500.0,0.00034452,60]
[423149304,1779893658000,-500.0,0.00034452,60]
[423149363,1779893659000,-492.0,0.00034452,60]
[423149355,1779893659000,-189.78723983,0.00034452,60]
[423149366,1779893659000,-492.0,0.00034452,60]
[423149357,1779893659000,-492.0,0.00034452,60]
[423149354,1779893659000,-289.47724845,0.00034452,60]
[423149356,1779893659000,-492.0,0.00034452,60]
[423149364,1779893659000,-492.0,0.00034452,60]
[423149362,1779893659000,-492.0,0.00034452,60]
[423149358,1779893659000,-492.0,0.00034452,60]
[423149360,1779893659000,-492.0,0.00034452,60]
[423149359,1779893659000,-492.0,0.00034452,60]
[423149361,1779893659000,-492.0,0.00034452,60]
[423149348,1779893659000,-150.0,0.00034452,60]
[423149365,1779893659000,-492.0,0.00034452,60]
[423149347,1779893659000,-492.0,0.00034452,60]
[423149337,1779893659000,-500.0,0.00034452,60]
[423149350,1779893659000,-150.0,0.00034452,60]
[423149367,1779893659000,-492.0,0.00034452,60]
[423149336,1779893659000,-500.0,0.00034452,60]
[423149338,1779893659000,-500.0,0.00034452,60]
[423149339,1779893659000,-500.0,0.00034452,60]
[423149340,1779893659000,-418.0,0.00034452,60]
[423149341,1779893659000,-541.74304789,0.00034452,60]
[423149352,1779893659000,-150.0,0.00034452,60]
[423149343,1779893659000,-423.92063898,0.00034452,60]
[423149353,1779893659000,-492.0,0.00034452,60]
[423149342,1779893659000,-418.0,0.00034452,60]
[423149346,1779893659000,-492.0,0.00034452,60]
[423149351,1779893659000,-150.0,0.00034452,60]
[423149349,1779893659000,-492.0,0.00034452,60]
[423149344,1779893659000,-150.0,0.00034452,60]
[423149345,1779893659000,-172.02329996,0.00034452,60]
[423149370,1779893659000,-492.0,0.00034452,60]
[423149376,1779893659000,-213.52814154,0.00034504,2]
[423149372,1779893659000,-492.0,0.00034452,60]
[423149371,1779893659000,-492.0,0.00034452,60]
[423149402,1779893659000,-150.0,0.00034787,30]
[423149397,1779893659000,-466.48,0.00034682,2]
[423149395,1779893659000,-1336.11,0.00034649,2]
[423149394,1779893659000,-19999.99,0.00034649,2]
[423149392,1779893659000,-999.99,0.00034649,10]
[423149393,1779893659000,-299.99,0.00034649,30]
[423149391,1779893659000,-150.99,0.00034649,2]
[423149398,1779893659000,-191.9,0.00034701,30]
[423149401,1779893659000,-180.65,0.00034754,30]
[423149390,1779893659000,-24999.99,0.00034649,2]
[423149400,1779893659000,-166.14,0.00034746,2]
[423149399,1779893659000,-173.89,0.00034734,30]
[423149388,1779893659000,-9999.99,0.00034649,2]
[423149389,1779893659000,-9999.99,0.00034649,2]
[423149396,1779893659000,-254.53,0.0003468,4]
[423149385,1779893659000,-6226.81,0.00034649,90]
[423149386,1779893659000,-4999.99,0.00034649,30]
[423149368,1779893659000,-492.0,0.00034452,60]
[423149373,1779893659000,-492.0,0.00034452,60]
[423149374,1779893659000,-492.0,0.00034452,60]
[423149375,1779893659000,-511.7163428,0.00034452,60]
[423149377,1779893659000,-152.0,0.00034504,120]
[423149381,1779893659000,-1687.57,0.00034649,30]
[423149369,1779893659000,-492.0,0.00034452,60]
[423149382,1779893659000,-8470.43,0.00034649,2]
[423149379,1779893659000,-172.61,0.00034517,30]
[423149378,1779893659000,-152.0,0.00034504,120]
[423149383,1779893659000,-9999.99,0.00034649,2]
[423149384,1779893659000,-9999.99,0.00034649,2]
[423149380,1779893659000,-150.0,0.00034566,30]
[423149387,1779893659000,-499.99,0.00034649,2]
[423149502,1779893660000,-300.0,0.00035666,2]
[423149500,1779893660000,-300.99795142,0.00035666,2]
[423149494,1779893660000,-894.65434383,0.00035666,2]
[423149493,1779893660000,-1068.40163352,0.00035666,2]
[423149490,1779893660000,-300.0,0.00035666,2]
[423149492,1779893660000,-528.48327171,0.00035666,2]
[423149488,1779893660000,-605.31118564,0.00035666,2]
[423149482,1779893660000,-300.0,0.00035666,2]
[423149486,1779893660000,-300.0,0.00035666,2]
[423149491,1779893660000,-300.0,0.00035666,2]
[423149501,1779893660000,-300.0,0.00035666,2]
[423149514,1779893660000,-865.6208675,0.00035666,2]
[423149497,1779893660000,-302.21937029,0.00035666,2]
[423149499,1779893660000,-300.0,0.00035666,2]
[423149498,1779893660000,-300.0,0.00035666,2]
[423149496,1779893660000,-300.0,0.00035666,2]
[423149504,1779893660000,-300.0,0.00035666,2]
[423149503,1779893660000,-300.0,0.00035666,2]
[423149505,1779893660000,-300.0,0.00035666,2]
[423149506,1779893660000,-300.0,0.00035666,2]
[423149512,1779893660000,-300.0,0.00035666,2]
[423149508,1779893660000,-344.45437934,0.00035666,2]
[423149483,1779893660000,-493.38669858,0.00035666,2]
[423149495,1779893660000,-727.07827244,0.00035666,2]
[423149487,1779893660000,-300.0,0.00035666,2]
[423149471,1779893660000,-310.28230408,0.00035666,2]
[423149511,1779893660000,-300.0,0.00035666,2]
[423149460,1779893660000,-1000.0,0.00035616,10]
[423149459,1779893660000,-1000.0,0.00035616,10]
[423149464,1779893660000,-1000.0,0.00035616,10]
[423149461,1779893660000,-1000.0,0.00035616,10]
[423149463,1779893660000,-1000.0,0.00035616,10]
[423149462,1779893660000,-1000.0,0.00035616,10]
[423149458,1779893660000,-1000.0,0.00035616,10]
[423149465,1779893660000,-1000.0,0.00035616,10]
[423149475,1779893660000,-1096.2926835,0.00035666,2]
[423149474,1779893660000,-313.10763464,0.00035666,2]
[423149473,1779893660000,-300.0,0.00035666,2]
[423149485,1779893660000,-300.0,0.00035666,2]
[423149468,1779893660000,-510.0,0.00035616,10]
[423149472,1779893660000,-300.00000001,0.00035666,2]
[423149476,1779893660000,-300.0,0.00035666,2]
[423149477,1779893660000,-300.0,0.00035666,2]
[423149467,1779893660000,-1000.0,0.00035616,10]
[423149469,1779893660000,-176.1,0.0003562,30]
[423149470,1779893660000,-500.0,0.00035657,120]
[423149479,1779893660000,-300.0,0.00035666,2]
[423149489,1779893660000,-300.0,0.00035666,2]
[423149480,1779893660000,-300.0,0.00035666,2]
[423149478,1779893660000,-300.0,0.00035666,2]
[423149484,1779893660000,-300.0,0.00035666,2]
[423149466,1779893660000,-1000.0,0.00035616,10]
[423149507,1779893660000,-1263.96825586,0.00035666,2]
[423149481,1779893660000,-300.0,0.00035666,2]
[423149513,1779893660000,-300.0,0.00035666,2]
[423149550,1779893660000,-300.0,0.00035666,2]
[423149543,1779893660000,-300.0,0.00035666,2]
[423149547,1779893660000,-300.0,0.00035666,2]
[423149549,1779893660000,-300.0,0.00035666,2]
[423149548,1779893660000,-300.0,0.00035666,2]
[423149546,1779893660000,-1096.2926835,0.00035666,2]
[423149542,1779893660000,-300.0,0.00035666,2]
[423149545,1779893660000,-300.0,0.00035666,2]
[423149544,1779893660000,-300.0,0.00035666,2]
[423149554,1779893660000,-300.0,0.00035666,2]
[423149553,1779893660000,-300.0,0.00035666,2]
[423149541,1779893660000,-310.28230408,0.00035666,2]
[423149551,1779893660000,-300.0,0.00035666,2]
[423149557,1779893660000,-300.0,0.00035666,2]
[423149558,1779893660000,-300.0,0.00035666,2]
[423149556,1779893660000,-300.12808339,0.00035666,2]
[423149560,1779893660000,-605.31118564,0.00035666,2]
[423149559,1779893660000,-300.0,0.00035666,2]
[423149561,1779893660000,-300.0,0.00035666,2]
[423149562,1779893660000,-300.0,0.00035666,2]
[423149563,1779893660000,-300.0,0.00035666,2]
[423149564,1779893660000,-528.48327171,0.00035666,2]
[423149565,1779893660000,-1068.40163352,0.00035666,2]
[423149510,1779893660000,-300.0,0.00035666,2]
[423149555,1779893660000,-493.38669858,0.00035666,2]
[423149540,1779893660000,-484.76763572,0.00035666,2]
[423149552,1779893660000,-300.0,0.00035666,2]
[423149537,1779893660000,-300.52013629,0.00035666,2]
[423149539,1779893660000,-300.0,0.00035666,2]
[423149509,1779893660000,-527.62572404,0.00035666,2]
[423149515,1779893660000,-950.32029804,0.00035666,2]
[423149518,1779893660000,-1148.83589152,0.00035666,2]
[423149516,1779893660000,-300.09384644,0.00035666,2]
[423149517,1779893660000,-300.0,0.00035666,2]
[423149520,1779893660000,-406.47561395,0.00035666,2]
[423149522,1779893660000,-1634.44392223,0.00035666,2]
[423149521,1779893660000,-300.0,0.00035666,2]
[423149519,1779893660000,-310.02493426,0.00035666,2]
[423149525,1779893660000,-300.0,0.00035666,2]
[423149523,1779893660000,-300.0,0.00035666,2]
[423149524,1779893660000,-300.0,0.00035666,2]
[423149534,1779893660000,-300.0,0.00035666,2]
[423149526,1779893660000,-594.79850986,0.00035666,2]
[423149532,1779893660000,-300.0,0.00035666,2]
[423149535,1779893660000,-300.0,0.00035666,2]
[423149533,1779893660000,-452.52893397,0.00035666,2]
[423149531,1779893660000,-578.28315025,0.00035666,2]
[423149530,1779893660000,-300.0,0.00035666,2]
[423149527,1779893660000,-300.0,0.00035666,2]
[423149529,1779893660000,-464.48677942,0.00035666,2]
[423149538,1779893660000,-300.0,0.00035666,2]
[423149528,1779893660000,-300.0,0.00035666,2]
[423149536,1779893660000,-300.0,0.00035666,2]
[423149606,1779893661000,-300.0,0.00035666,2]
[423149599,1779893661000,-300.0,0.00035666,2]
[423149603,1779893661000,-578.28315025,0.00035666,2]
[423149607,1779893661000,-300.0,0.00035666,2]
[423149601,1779893661000,-464.48677942,0.00035666,2]
[423149593,1779893661000,-300.0,0.00035666,2]
[423149597,1779893661000,-300.0,0.00035666,2]
[423149602,1779893661000,-300.0,0.00035666,2]
[423149608,1779893661000,-300.0,0.00035666,2]
[423149598,1779893661000,-594.79850986,0.00035666,2]
[423149605,1779893661000,-452.52893397,0.00035666,2]
[423149600,1779893661000,-300.0,0.00035666,2]
[423149604,1779893661000,-300.0,0.00035666,2]
[423149621,1779893661000,-784.0,0.00035801,30]
[423149610,1779893661000,-300.0,0.00035666,2]
[423149620,1779893661000,-159.0,0.00035801,30]
[423149612,1779893661000,-250.0,0.00035702,7]
[423149614,1779893661000,-1795.47616723,0.00035743,2]
[423149613,1779893661000,-506.0,0.00035711,13]
[423149611,1779893661000,-484.76763572,0.00035666,2]
[423149616,1779893661000,-175.0,0.00035799,30]
[423149615,1779893661000,-175.0,0.00035799,30]
[423149619,1779893661000,-154.0,0.00035801,30]
[423149617,1779893661000,-186.0,0.00035799,30]
[423149622,1779893661000,-187.0,0.00035801,30]
[423149595,1779893661000,-300.0,0.00035666,2]
[423149609,1779893661000,-300.0,0.00035666,2]
[423149589,1779893661000,-300.0,0.00035666,2]
[423149569,1779893661000,-300.0,0.00035666,2]
[423149591,1779893661000,-310.02493426,0.00035666,2]
[423149566,1779893661000,-727.07827244,0.00035666,2]
[423149623,1779893661000,-184.7831,0.00035837,2]
[423149570,1779893661000,-300.0,0.00035666,2]
[423149568,1779893661000,-302.21937029,0.00035666,2]
[423149571,1779893661000,-300.99795142,0.00035666,2]
[423149572,1779893661000,-300.0,0.00035666,2]
[423149573,1779893661000,-300.0,0.00035666,2]
[423149567,1779893661000,-300.00000001,0.00035666,2]
[423149575,1779893661000,-300.0,0.00035666,2]
[423149574,1779893661000,-300.0,0.00035666,2]
[423149576,1779893661000,-300.0,0.00035666,2]
[423149577,1779893661000,-300.0,0.00035666,2]
[423149592,1779893661000,-300.0,0.00035666,2]
[423149578,1779893661000,-1263.96825586,0.00035666,2]
[423149579,1779893661000,-300.0,0.00035666,2]
[423149580,1779893661000,-344.45437934,0.00035666,2]
[423149581,1779893661000,-527.62572404,0.00035666,2]
[423149583,1779893661000,-300.0,0.00035666,2]
[423149582,1779893661000,-372.88318182,0.00035666,2]
[423149586,1779893661000,-865.6208675,0.00035666,2]
[423149587,1779893661000,-950.32029804,0.00035666,2]
[423149596,1779893661000,-300.0,0.00035666,2]
[423149588,1779893661000,-1800.09388364,0.00035666,2]
[423149594,1779893661000,-1634.44392223,0.00035666,2]
[423149585,1779893661000,-300.0,0.00035666,2]
[423149590,1779893661000,-1148.83589152,0.00035666,2]
[423149584,1779893661000,-300.0,0.00035666,2]
[423149628,1779893661000,-150.0,0.00035911,2]
[423149618,1779893661000,-153.0,0.00035799,30]
[423149625,1779893661000,-959.0,0.000359,15]
[423149659,1779893661000,-237.06,0.00036012,30]
[423149657,1779893661000,-1369.33904097,0.00036,120]
[423149665,1779893661000,-215.14439636,0.0003622,30]
[423149668,1779893661000,-215.14439636,0.0003622,30]
[423149662,1779893661000,-152.0,0.00036034,7]
[423149666,1779893661000,-215.14439636,0.0003622,30]
[423149661,1779893661000,-152.0,0.00036034,7]
[423149660,1779893661000,-834.12069359,0.00036021,2]
[423149663,1779893661000,-152.0,0.00036106,7]
[423149658,1779893661000,-723.456095,0.00036,120]
[423149667,1779893661000,-215.14439636,0.0003622,30]
[423149670,1779893661000,-499.08255755,0.00036386,34]
[423149674,1779893661000,-1795.47616723,0.00036683,2]
[423149679,1779893661000,-138380.5007,0.00036768,30]
[423149671,1779893661000,-426.25308804,0.00036412,120]
[423149673,1779893661000,-293.646211,0.00036425,5]
[423149672,1779893661000,-466.50935312,0.00036416,2]
[423149680,1779893661000,-2215.73492139,0.00036778,2]
[423149669,1779893661000,-330.0,0.00036355,40]
[423149678,1779893661000,-500.0,0.00036761,30]
[423149677,1779893661000,-2215.73492139,0.00036759,2]
[423149675,1779893661000,-150.0,0.00036742,120]
[423149676,1779893661000,-169.68613872,0.00036758,30]
[423149681,1779893661000,-2215.73492139,0.00036778,2]
[423149683,1779893661000,-150.0,0.0003688,2]
[423149629,1779893661000,-182.7,0.00035911,2]
[423149682,1779893661000,-190.48478702,0.00036822,120]
[423149656,1779893661000,-757.83022606,0.00036,120]
[423149652,1779893661000,-152.0,0.00035962,7]
[423149664,1779893661000,-215.14439636,0.0003622,30]
[423149653,1779893661000,-152.0,0.00035962,7]
[423149630,1779893661000,-182.7,0.00035911,2]
[423149654,1779893661000,-243.17539936,0.00036,120]
[423149626,1779893661000,-2000.0,0.0003591,2]
[423149627,1779893661000,-180.64,0.00035911,2]
[423149631,1779893661000,-311.17,0.00035911,30]
[423149633,1779893661000,-177.17,0.00035911,2]
[423149634,1779893661000,-164.69,0.00035911,30]
[423149643,1779893661000,-198.54,0.00035911,30]
[423149632,1779893661000,-191.98,0.00035911,30]
[423149640,1779893661000,-166.65,0.00035911,2]
[423149635,1779893661000,-153.62,0.00035911,2]
[423149642,1779893661000,-173.92,0.00035911,30]
[423149636,1779893661000,-174.12,0.00035911,7]
[423149624,1779893661000,-200.0,0.00035838,10]
[423149639,1779893661000,-157.77,0.00035911,7]
[423149649,1779893661000,-695.24347086,0.00035911,2]
[423149638,1779893661000,-172.62,0.00035911,2]
[423149648,1779893661000,-275.22966363,0.00035911,2]
[423149651,1779893661000,-152.0,0.00035962,7]
[423149646,1779893661000,-157.39,0.00035911,2]
[423149644,1779893661000,-166.15,0.00035911,30]
[423149650,1779893661000,-157.34450283,0.00035911,2]
[423149655,1779893661000,-248.00977717,0.00036,120]
[423149645,1779893661000,-157.39,0.00035911,2]
[423149637,1779893661000,-168.49,0.00035911,2]
[423149641,1779893661000,-180.69,0.00035911,30]
[423149647,1779893661000,-157.4,0.00035911,2]
[423149724,1779893662000,-181.6629453,0.00037638,120]
[423149730,1779893662000,-790.92829569,0.00037691,120]
[423149729,1779893662000,-157.90300786,0.00037684,2]
[423149723,1779893662000,-1795.47616723,0.00037623,2]
[423149719,1779893662000,-150.0,0.000376,30]
[423149710,1779893662000,-157.90300786,0.0003741,2]
[423149720,1779893662000,-1600.0,0.0003761,60]
[423149722,1779893662000,-199.97,0.00037622,120]